{"text_format":"1","workbook":"xlsx","n_sheets":3,"sheets":["Instruccions","Reformulació Pressupost Bb2","Resum Pressupost"],"not_rendered":{"charts":0,"images":5,"macros":1,"external_links":0,"defined_names":8,"comments":2,"pivot_tables":0},"unopened":[],"bounds":{"document_bytes":16777216,"sheet_cells":100000,"rows_first":2000,"rows_last":500,"rows_between":2000,"halvings":0,"cell_chars":16384,"cell_head_chars":4096},"cells_cut":0,"cells_raw":0,"read":"whole","date_system":"1900"}

{"sheet":"Instruccions","index":0,"n_rows":24,"n_cols":10,"rows_kept":24,"cut":false,"hidden":false,"merged":[[22,1,22,16],[23,1,23,16],[1,9,1,11],[2,2,2,17],[4,2,4,17]]}
[]
[null,null,null,null,null,null,null,null,null,"Doc_basic3_pressup_reformulat_Bb2 INSTRUCCIONS"]
[null,null,"SUBVENCIONS DE L’AJUNTAMENT DE BARCELONA PER L’ENFORTIMENT DE L’ECONOMIA SOCIAL I SOLIDÀRIA I PER LA INTERCOOPERACIÓ EN L’ESTRATÈGIA #ESSBCN2030 - ENFORTIM L’ESS 2023"]
[]
[null,null,"Aspectes rellevants relacionats amb la reformulació"]
[]
[]
[]
[]
[null,"1. Emplenar la pestanya  \"Reformulació Pressupost\" amb les dades econòmiques del projecte:"]
[null,"1.1  Emplenar els quadres DADES BÀSIQUES-PREVISIÓ DE DESPESES DEL PROJECTE SUBVENCIONABLE INICIAL, amb les dades econòmiques de la proposta inicial amb subvenció atorgada."]
[null,"1.2  Emplenar els quadres DADES BÀSIQUES-PREVISIÓ DE DESPESES DEL PROJECTE REFORMULAT, amb les dades econòmiques de la proposta de reformulació."]
[null,"2. Revisar i emplenar la pestanya  \"Resum Pressupost\" amb les dades econòmiques del projecte:"]
[null,"3. Imprimir els fulls de les 2 pestanyes (Reformulació pressupost i Resum Pressupost). En format pdf."]
[]
[]
[]
[null,"Clica la icona per generar un document PDF del llibre"]
[]
[]
[]
[]
[null,"4. Si la sol·licitud es va presentar per via telemàtica, cal que registreu la documentació, telemàticament, com a tràmit específic, dins la convocatòria específica com annexió de documents addicionals i feu servir el número de tràmit que el sistema de registre us va donar en el moment de la presentació de la sol·licitud de la subvenció."]
[null,"5. En el cas que registreu la documentació telemàticament, com a instància genèrica, mitjançant certificat digital, us recomanem que aviseu a l'adreça de correu electrònic subvencions_ec_solidaria@bcn.cat, per tal de poder fer-ne un seguiment, així com també en els casos que presenteu la documentació a través d'una Oficina d'Atenció Ciutadana de l'Ajuntament, si no heu pogut obtenir el certificat digital (els requisits per obtenir-lo els trobareu a l'Oficina Virtual de Tràmits de la Seu Electrònica: https://seuelectronica.ajuntament.barcelona.cat/oficinavirtual/)."]

{"sheet":"Reformulació Pressupost Bb2","index":1,"n_rows":144,"n_cols":10,"rows_kept":144,"cut":false,"hidden":false,"merged":[[121,0,121,3],[122,0,122,3],[135,0,135,3],[136,0,136,3],[130,0,130,3],[131,0,131,3],[132,0,132,3],[133,0,133,3],[134,0,134,3],[1,1,1,8],[18,0,18,3],[10,6,10,7],[18,6,18,8],[6,2,6,5],[140,0,140,3],[141,0,141,3],[142,0,142,3],[143,0,143,3],[3,0,4,8],[20,0,20,3],[123,0,123,3],[124,0,124,3],[125,0,125,3],[126,0,126,3],[127,0,127,3],[128,0,128,3],[129,0,129,3],[137,0,137,3],[138,0,138,3],[139,0,139,3]]}
[]
[null,"Reformulació pressupost Modalitat Bb2"]
[]
["Programa de subvencions de l'Ajuntament de Barcelona per a la reactivació i l'enfortiment de l'Economia Social i Solidària i el desenvolupament de projectes d'intercooperació que desenvolupen l'Estratègia #ESSBCN2030"]
[]
[]
[]
["DADES BÀSIQUES"]
["Nom de la persona física/ jurídica",null,{"$f":"+IF(H9>Dadesbasiques[[#This Row],[Columna1]],\"ALERTA: La quantia de la subvenció atorgada no pot superar el 80% de la despesa total del projecte a subvencionar\", \" \")","v":" "},null,null,"  "]
["NIF de la persona física/ jurídica",null,{"$f":"+IF(H10>Dadesbasiques[[#This Row],[Columna1]],\"ALERTA: La quantia de la subvenció atorgada no pot superar el 80% de la despesa total del projecte a subvencionar\", \" \")","v":" "}]
["Nom del projecte subvencionable",null,{"$f":"+IF(H11>Dadesbasiques[[#This Row],[Columna1]],\"ALERTA: La quantia de la subvenció atorgada no pot superar el 80% de la despesa total del projecte a subvencionar\", \" \")","v":" "},null,null,null,"DADES BÀSIQUES PROJECTE REFORMULAT"]
["Import total del projecte subvencionable",null,null,null,null,null,"Import total del projecte REFORMULAT"]
["Import imputable a la subvenció municipal",null,null,null,null,null,"Import imputable a la subvenció ATORGADA"]
["Import de l'aportació / Cofinançament de l'organització",{"$f":"+B12-B13","v":0},null,null,null,null,"Import de l'aportació / Cofinançament de l'organització",{"$f":"H12-H13","v":0}]
["% de l'import sol·licitat respecte el total del projecte subvencionable (*)",{"$f":"B13/B12","v":{"$error":"#DIV/0!"}},null,null,null,null,"% de l'import sol·licitat respecte el total del projecte subvencionat",{"$f":"H13/H12","v":{"$error":"#DIV/0!"}},{"$f":"+IF(H15>Dadesbasiques[[#This Row],[Columna1]],\"*Aquest percentatge ha de ser igual o menor al percentatge subvencionat inicialment.\",\" \")","v":{"$error":"#DIV/0!"}}]
["Data inici del projecte subvencionat (dd/mm/aaaa)",null,{"$f":"+IF(H16>Dadesbasiques[[#This Row],[Columna1]],\"ALERTA: La quantia de la subvenció atorgada no pot superar el 80% de la despesa total del projecte a subvencionar\", \" \")","v":" "}]
["Data fi del projecte subvencionat (dd/mm/aaaa)",null,{"$f":"+IF(H17>Dadesbasiques[[#This Row],[Columna1]],\"ALERTA: La quantia de la subvenció atorgada no pot superar el 80% de la despesa total del projecte a subvencionar\", \" \")","v":" "}]
[]
["PREVISIÓ DE DESPESES DEL PROJECTE SUBVENCIONABLE INICIAL",null,null,null,null,null,"PREVISIÓ DE DESPESES DEL PROJECTE REFORMULAT"]
[]
["PREVISIÓ DE DESPESES DEL PROJECTE SUBVENCIONABLE PER SUBMODALITAT Bb2"]
[]
["Partides","Import imputable a la subvenció municipal","Import de l'aportació / Cofinançament de l'organització","Import total del projecte",null,null,"Import imputable a la subvenció municipal","Import de l'aportació / Cofinançament de l'organització","Import total del projecte"]
["D1. Retribucions i seguretat social (règim general o règim d’autònoms) del personal propi  vinculat/da al projecte (màxim 40% subvenció)",{"$f":"SUM(B25:B28)","v":0},{"$f":"SUM(C25:C28)","v":0},{"$f":"SUM(DespesesProjecte[[#This Row],[Import imputable a la subvenció municipal]],DespesesProjecte[[#This Row],[Import de l''aportació / Cofinançament de l''organització]])","v":0},null,null,{"$f":"SUM(G25:G28)","v":0},{"$f":"SUM(H25:H28)","v":0},{"$f":"+G24+H24","v":0}]
[null,null,null,{"$f":"SUM(DespesesProjecte[[#This Row],[Import imputable a la subvenció municipal]],DespesesProjecte[[#This Row],[Import de l''aportació / Cofinançament de l''organització]])","v":0},null,null,null,null,{"$f":"+G25+H25","v":0}]
[null,null,null,{"$f":"SUM(DespesesProjecte[[#This Row],[Import imputable a la subvenció municipal]],DespesesProjecte[[#This Row],[Import de l''aportació / Cofinançament de l''organització]])","v":0},null,null,null,null,0]
[null,null,null,{"$f":"SUM(DespesesProjecte[[#This Row],[Import imputable a la subvenció municipal]],DespesesProjecte[[#This Row],[Import de l''aportació / Cofinançament de l''organització]])","v":0},null,null,null,null,0]
[null,null,null,{"$f":"SUM(DespesesProjecte[[#This Row],[Import imputable a la subvenció municipal]],DespesesProjecte[[#This Row],[Import de l''aportació / Cofinançament de l''organització]])","v":0},null,null,null,null,0]
["TOTAL DE DESPESES DEL PERSONAL\nMàxim 40% de l'import imputable a la subvenció municipal si es tracta de personal propi assignat directament al projecte subvencionat",{"$f":"SUM(B24)","v":0},{"$f":"SUM(C24)","v":0},{"$f":"SUM(D24)","v":0},null,null,{"$f":"SUM(G24)","v":0},{"$f":"SUM(H24)","v":0},{"$f":"SUM(I24)","v":0},{"$f":"+IF(G29>H13*0.4,\"ALERTA: Màxim 40% de l'import imputable a la subvenció municipal\", \" \")","v":" "}]
["D2.  Treballs realitzats per professionals i empreses externes directament vinculades al projecte",{"$f":"SUM(B31:B33)","v":0},{"$f":"SUM(C31:C33)","v":0},{"$f":"SUM(DespesesProjecte[[#This Row],[Import imputable a la subvenció municipal]],DespesesProjecte[[#This Row],[Import de l''aportació / Cofinançament de l''organització]])","v":0},null,null,{"$f":"SUM(G31:G33)","v":0},{"$f":"SUM(H31:H33)","v":0},{"$f":"+G30+H30","v":0}]
[null,null,null,{"$f":"SUM(DespesesProjecte[[#This Row],[Import imputable a la subvenció municipal]],DespesesProjecte[[#This Row],[Import de l''aportació / Cofinançament de l''organització]])","v":0},null,null,null,null,{"$f":"+G31+H31","v":0}]
[null,null,null,{"$f":"SUM(DespesesProjecte[[#This Row],[Import imputable a la subvenció municipal]],DespesesProjecte[[#This Row],[Import de l''aportació / Cofinançament de l''organització]])","v":0},null,null,null,null,0]
[null,null,null,{"$f":"SUM(DespesesProjecte[[#This Row],[Import imputable a la subvenció municipal]],DespesesProjecte[[#This Row],[Import de l''aportació / Cofinançament de l''organització]])","v":0},null,null,null,null,0]
["D3.   Lloguer de béns mobles/ immobles directament vinculats al projecte (màxim 25% subvenció en cas d'immobles per a un nou espai)",{"$f":"SUM(B35:B37)","v":0},{"$f":"SUM(C35:C37)","v":0},{"$f":"SUM(DespesesProjecte[[#This Row],[Import imputable a la subvenció municipal]],DespesesProjecte[[#This Row],[Import de l''aportació / Cofinançament de l''organització]])","v":0},null,null,{"$f":"SUM(G35:G37)","v":0},{"$f":"SUM(H35:H37)","v":0},0,{"$f":"+IF(G34>H13*0.25,\"ALERTA: Màxim 25% de l'import imputable a la subvenció municipal\", \" \")","v":" "}]
[null,null,null,{"$f":"SUM(DespesesProjecte[[#This Row],[Import imputable a la subvenció municipal]],DespesesProjecte[[#This Row],[Import de l''aportació / Cofinançament de l''organització]])","v":0},null,null,null,null,0]
[null,null,null,{"$f":"SUM(DespesesProjecte[[#This Row],[Import imputable a la subvenció municipal]],DespesesProjecte[[#This Row],[Import de l''aportació / Cofinançament de l''organització]])","v":0},null,null,null,null,0]
[null,null,null,{"$f":"SUM(DespesesProjecte[[#This Row],[Import imputable a la subvenció municipal]],DespesesProjecte[[#This Row],[Import de l''aportació / Cofinançament de l''organització]])","v":0},null,null,null,null,0]
["D4. Adquisició de materials i béns consumibles íntegrament imputables al projecte ",{"$f":"SUM(B39:B41)","v":0},{"$f":"SUM(C39:C41)","v":0},{"$f":"SUM(DespesesProjecte[[#This Row],[Import imputable a la subvenció municipal]],DespesesProjecte[[#This Row],[Import de l''aportació / Cofinançament de l''organització]])","v":0},null,null,{"$f":"SUM(G39:G41)","v":0},{"$f":"SUM(H39:H41)","v":0},0]
[null,null,null,{"$f":"SUM(DespesesProjecte[[#This Row],[Import imputable a la subvenció municipal]],DespesesProjecte[[#This Row],[Import de l''aportació / Cofinançament de l''organització]])","v":0},null,null,null,null,0]
[null,null,null,{"$f":"SUM(DespesesProjecte[[#This Row],[Import imputable a la subvenció municipal]],DespesesProjecte[[#This Row],[Import de l''aportació / Cofinançament de l''organització]])","v":0},null,null,null,null,0]
[null,null,null,{"$f":"SUM(DespesesProjecte[[#This Row],[Import imputable a la subvenció municipal]],DespesesProjecte[[#This Row],[Import de l''aportació / Cofinançament de l''organització]])","v":0},null,null,null,null,0]
["D5.  Transport – missatgeria imputables al projecte",{"$f":"SUM(B43:B45)","v":0},{"$f":"SUM(C43:C45)","v":0},{"$f":"DespesesProjecte[[#This Row],[Import imputable a la subvenció municipal]]+DespesesProjecte[[#This Row],[Import de l''aportació / Cofinançament de l''organització]]","v":0},null,null,{"$f":"SUM(G43:G45)","v":0},{"$f":"SUM(H43:H45)","v":0},0]
[null,null,null,{"$f":"SUM(DespesesProjecte[[#This Row],[Import imputable a la subvenció municipal]],DespesesProjecte[[#This Row],[Import de l''aportació / Cofinançament de l''organització]])","v":0},null,null,null,null,0]
[null,null,null,{"$f":"SUM(DespesesProjecte[[#This Row],[Import imputable a la subvenció municipal]],DespesesProjecte[[#This Row],[Import de l''aportació / Cofinançament de l''organització]])","v":0},null,null,null,null,0]
[null,null,null,{"$f":"SUM(DespesesProjecte[[#This Row],[Import imputable a la subvenció municipal]],DespesesProjecte[[#This Row],[Import de l''aportació / Cofinançament de l''organització]])","v":0},null,null,null,null,0]
["D6.  Publicitat i propaganda de les activitats directament vinculades al projecte",{"$f":"SUM(B47:B49)","v":0},{"$f":"SUM(C47:C49)","v":0},{"$f":"SUM(DespesesProjecte[[#This Row],[Import imputable a la subvenció municipal]],DespesesProjecte[[#This Row],[Import de l''aportació / Cofinançament de l''organització]])","v":0},null,null,{"$f":"SUM(G47:G49)","v":0},{"$f":"SUM(H47:H49)","v":0},0]
[null,null,null,{"$f":"SUM(DespesesProjecte[[#This Row],[Import imputable a la subvenció municipal]],DespesesProjecte[[#This Row],[Import de l''aportació / Cofinançament de l''organització]])","v":0},null,null,null,null,0]
[null,null,null,{"$f":"SUM(DespesesProjecte[[#This Row],[Import imputable a la subvenció municipal]],DespesesProjecte[[#This Row],[Import de l''aportació / Cofinançament de l''organització]])","v":0},null,null,null,null,0]
[null,null,null,{"$f":"SUM(DespesesProjecte[[#This Row],[Import imputable a la subvenció municipal]],DespesesProjecte[[#This Row],[Import de l''aportació / Cofinançament de l''organització]])","v":0},null,null,null,null,0]
["D7.   Allotjament i dietes, del personal contractat i voluntari, vinculats al projecte",{"$f":"SUM(B51:B53)","v":0},{"$f":"SUM(C51:C53)","v":0},{"$f":"SUM(DespesesProjecte[[#This Row],[Import imputable a la subvenció municipal]],DespesesProjecte[[#This Row],[Import de l''aportació / Cofinançament de l''organització]])","v":0},null,null,{"$f":"SUM(G51:G53)","v":0},{"$f":"SUM(H51:H53)","v":0},0]
[null,null,null,{"$f":"SUM(DespesesProjecte[[#This Row],[Import imputable a la subvenció municipal]],DespesesProjecte[[#This Row],[Import de l''aportació / Cofinançament de l''organització]])","v":0},null,null,null,null,0]
[null,null,null,{"$f":"SUM(DespesesProjecte[[#This Row],[Import imputable a la subvenció municipal]],DespesesProjecte[[#This Row],[Import de l''aportació / Cofinançament de l''organització]])","v":0},null,null,null,null,0]
[null,null,null,{"$f":"SUM(DespesesProjecte[[#This Row],[Import imputable a la subvenció municipal]],DespesesProjecte[[#This Row],[Import de l''aportació / Cofinançament de l''organització]])","v":0},null,null,null,null,0]
["D8.  Ajuts al transport per als/les participants dels projectes en cas que sigui necessari de manera justificada",{"$f":"SUM(B55:B57)","v":0},{"$f":"SUM(C55:C57)","v":0},{"$f":"SUM(DespesesProjecte[[#This Row],[Import imputable a la subvenció municipal]],DespesesProjecte[[#This Row],[Import de l''aportació / Cofinançament de l''organització]])","v":0},null,null,{"$f":"SUM(G55:G57)","v":0},{"$f":"SUM(H55:H57)","v":0},0]
[null,null,null,{"$f":"SUM(DespesesProjecte[[#This Row],[Import imputable a la subvenció municipal]],DespesesProjecte[[#This Row],[Import de l''aportació / Cofinançament de l''organització]])","v":0},null,null,null,null,0]
[null,null,null,{"$f":"SUM(DespesesProjecte[[#This Row],[Import imputable a la subvenció municipal]],DespesesProjecte[[#This Row],[Import de l''aportació / Cofinançament de l''organització]])","v":0},null,null,null,null,0]
[null,null,null,{"$f":"SUM(DespesesProjecte[[#This Row],[Import imputable a la subvenció municipal]],DespesesProjecte[[#This Row],[Import de l''aportació / Cofinançament de l''organització]])","v":0},null,null,null,null,0]
["D9.  Viatges i desplaçaments imputables a les activitats del projecte",{"$f":"SUM(B59:B61)","v":0},{"$f":"SUM(C59:C61)","v":0},{"$f":"DespesesProjecte[[#This Row],[Import imputable a la subvenció municipal]]+DespesesProjecte[[#This Row],[Import de l''aportació / Cofinançament de l''organització]]","v":0},null,null,{"$f":"SUM(G59:G61)","v":0},{"$f":"SUM(H59:H61)","v":0},0]
[null,null,null,{"$f":"SUM(DespesesProjecte[[#This Row],[Import imputable a la subvenció municipal]],DespesesProjecte[[#This Row],[Import de l''aportació / Cofinançament de l''organització]])","v":0},null,null,null,null,{"$f":"+G59+H59","v":0}]
[null,null,null,{"$f":"SUM(DespesesProjecte[[#This Row],[Import imputable a la subvenció municipal]],DespesesProjecte[[#This Row],[Import de l''aportació / Cofinançament de l''organització]])","v":0},null,null,null,null,0]
[null,null,null,{"$f":"SUM(DespesesProjecte[[#This Row],[Import imputable a la subvenció municipal]],DespesesProjecte[[#This Row],[Import de l''aportació / Cofinançament de l''organització]])","v":0},null,null,null,null,0]
["D10.  Tributs, quan siguin abonats directament per la persona jurídica o física beneficiària",{"$f":"SUBTOTAL(109,B63:B65)","v":0},{"$f":"SUBTOTAL(109,C63:C65)","v":0},{"$f":"DespesesProjecte[[#This Row],[Import imputable a la subvenció municipal]]+DespesesProjecte[[#This Row],[Import de l''aportació / Cofinançament de l''organització]]","v":0},null,null,{"$f":"SUBTOTAL(109,G63:G65)","v":0},{"$f":"SUBTOTAL(109,H63:H65)","v":0},0]
[null,null,null,{"$f":"SUM(DespesesProjecte[[#This Row],[Import imputable a la subvenció municipal]],DespesesProjecte[[#This Row],[Import de l''aportació / Cofinançament de l''organització]])","v":0},null,null,null,null,0]
[null,null,null,{"$f":"SUM(DespesesProjecte[[#This Row],[Import imputable a la subvenció municipal]],DespesesProjecte[[#This Row],[Import de l''aportació / Cofinançament de l''organització]])","v":0},null,null,null,null,0]
[null,null,null,{"$f":"SUM(DespesesProjecte[[#This Row],[Import imputable a la subvenció municipal]],DespesesProjecte[[#This Row],[Import de l''aportació / Cofinançament de l''organització]])","v":0},null,null,null,null,0]
["D11. Despeses de l'informe d'auditoria (màxim 1.500€ subvenció)",{"$f":"SUM(B67:B69)","v":0},{"$f":"SUM(C67:C69)","v":0},{"$f":"DespesesProjecte[[#This Row],[Import imputable a la subvenció municipal]]+DespesesProjecte[[#This Row],[Import de l''aportació / Cofinançament de l''organització]]","v":0},null,null,{"$f":"SUM(G67:G69)","v":0},{"$f":"SUM(H67:H69)","v":0},0,{"$f":"+IF(G66>1500,\"ALERTA: Màxim 1.500€ imputables a la subvenció municipal\", \" \")","v":" "}]
[null,null,null,{"$f":"SUM(DespesesProjecte[[#This Row],[Import imputable a la subvenció municipal]],DespesesProjecte[[#This Row],[Import de l''aportació / Cofinançament de l''organització]])","v":0},null,null,null,null,0]
[null,null,null,{"$f":"SUM(DespesesProjecte[[#This Row],[Import imputable a la subvenció municipal]],DespesesProjecte[[#This Row],[Import de l''aportació / Cofinançament de l''organització]])","v":0},null,null,null,null,0]
[null,null,null,{"$f":"SUM(DespesesProjecte[[#This Row],[Import imputable a la subvenció municipal]],DespesesProjecte[[#This Row],[Import de l''aportació / Cofinançament de l''organització]])","v":0},null,null,null,null,0]
["D12. Altres despeses que de manera justificada i per la tipologia del projecte puguin imputar-se directament al projecte",{"$f":"SUM(B71:B73)","v":0},{"$f":"SUM(C71:C73)","v":0},{"$f":"DespesesProjecte[[#This Row],[Import imputable a la subvenció municipal]]+DespesesProjecte[[#This Row],[Import de l''aportació / Cofinançament de l''organització]]","v":0},null,null,{"$f":"SUM(G71:G73)","v":0},{"$f":"SUM(H71:H73)","v":0},0]
[null,null,null,{"$f":"SUM(DespesesProjecte[[#This Row],[Import imputable a la subvenció municipal]],DespesesProjecte[[#This Row],[Import de l''aportació / Cofinançament de l''organització]])","v":0},null,null,null,null,0]
[null,null,null,{"$f":"SUM(DespesesProjecte[[#This Row],[Import imputable a la subvenció municipal]],DespesesProjecte[[#This Row],[Import de l''aportació / Cofinançament de l''organització]])","v":0},null,null,null,null,0]
[null,null,null,{"$f":"SUM(DespesesProjecte[[#This Row],[Import imputable a la subvenció municipal]],DespesesProjecte[[#This Row],[Import de l''aportació / Cofinançament de l''organització]])","v":0},null,null,null,null,0]
["TOTAL D'ALTRES DESPESES DIRECTES",{"$f":"B30+B34+B38+B42+B46+B50+B54+B58+B62+B66+B70","v":0},{"$f":"C30+C34+C38+C42+C46+C50+C54+C58+C62+C66+C70","v":0},{"$f":"D30+D34+D38+D42+D46+D50+D54+D58+D62+D66+D70","v":0},null,null,{"$f":"G30+G34+G38+G42+G46+G50+G54+G58+G62+G66+G70","v":0},{"$f":"H30+H34+H38+H42+H46+H50+H54+H58+H62+H66+H70","v":0},{"$f":"I30+I34+I38+I42+I46+I50+I54+I58+I62+I66+I70","v":0}]
["TOTAL DESPESES DIRECTES (aquelles que s’identifiquen directament amb el projecte subvencionable)",{"$f":"B29+B74","v":0},{"$f":"C29+C74","v":0},{"$f":"D29+D74","v":0},null,null,{"$f":"G29+G74","v":0},{"$f":"H29+H74","v":0},{"$f":"I29+I74","v":0}]
["I1. Personal de suport al projecte (nòmines i seguretat social)",{"$f":"SUM(B77:B79)","v":0},{"$f":"SUM(C77:C79)","v":0},{"$f":"SUM(DespesesProjecte[[#This Row],[Import imputable a la subvenció municipal]],DespesesProjecte[[#This Row],[Import de l''aportació / Cofinançament de l''organització]])","v":0},null,null,{"$f":"SUM(G77:G79)","v":0},{"$f":"SUM(H77:H79)","v":0},{"$f":"+G76+H76","v":0}]
[null,null,null,{"$f":"SUM(DespesesProjecte[[#This Row],[Import imputable a la subvenció municipal]],DespesesProjecte[[#This Row],[Import de l''aportació / Cofinançament de l''organització]])","v":0},null,null,null,null,{"$f":"+G77+H77","v":0}]
[null,null,null,{"$f":"SUM(DespesesProjecte[[#This Row],[Import imputable a la subvenció municipal]],DespesesProjecte[[#This Row],[Import de l''aportació / Cofinançament de l''organització]])","v":0},null,null,null,null,0]
[null,null,null,{"$f":"SUM(DespesesProjecte[[#This Row],[Import imputable a la subvenció municipal]],DespesesProjecte[[#This Row],[Import de l''aportació / Cofinançament de l''organització]])","v":0},null,null,null,null,0]
["I2.  Assegurances",{"$f":"SUM(B81:B83)","v":0},{"$f":"SUM(C81:C83)","v":0},{"$f":"SUM(DespesesProjecte[[#This Row],[Import imputable a la subvenció municipal]],DespesesProjecte[[#This Row],[Import de l''aportació / Cofinançament de l''organització]])","v":0},null,null,{"$f":"SUM(G81:G83)","v":0},{"$f":"SUM(H81:H83)","v":0},0]
[null,null,null,{"$f":"SUM(DespesesProjecte[[#This Row],[Import imputable a la subvenció municipal]],DespesesProjecte[[#This Row],[Import de l''aportació / Cofinançament de l''organització]])","v":0},null,null,null,null,0]
[null,null,null,{"$f":"SUM(DespesesProjecte[[#This Row],[Import imputable a la subvenció municipal]],DespesesProjecte[[#This Row],[Import de l''aportació / Cofinançament de l''organització]])","v":0},null,null,null,null,0]
[null,null,null,{"$f":"SUM(DespesesProjecte[[#This Row],[Import imputable a la subvenció municipal]],DespesesProjecte[[#This Row],[Import de l''aportació / Cofinançament de l''organització]])","v":0},null,null,null,null,0]
["I3.  Amortització",{"$f":"SUM(B85:B87)","v":0},{"$f":"SUM(C85:C87)","v":0},{"$f":"SUM(DespesesProjecte[[#This Row],[Import imputable a la subvenció municipal]],DespesesProjecte[[#This Row],[Import de l''aportació / Cofinançament de l''organització]])","v":0},null,null,{"$f":"SUM(G85:G87)","v":0},{"$f":"SUM(H85:H87)","v":0},0]
[null,null,null,{"$f":"SUM(DespesesProjecte[[#This Row],[Import imputable a la subvenció municipal]],DespesesProjecte[[#This Row],[Import de l''aportació / Cofinançament de l''organització]])","v":0},null,null,null,null,0]
[null,null,null,{"$f":"SUM(DespesesProjecte[[#This Row],[Import imputable a la subvenció municipal]],DespesesProjecte[[#This Row],[Import de l''aportació / Cofinançament de l''organització]])","v":0},null,null,null,null,0]
[null,null,null,{"$f":"SUM(DespesesProjecte[[#This Row],[Import imputable a la subvenció municipal]],DespesesProjecte[[#This Row],[Import de l''aportació / Cofinançament de l''organització]])","v":0},null,null,null,null,0]
["I4.  Lloguer de béns immobles",{"$f":"SUM(B89:B91)","v":0},{"$f":"SUM(C89:C91)","v":0},{"$f":"SUM(DespesesProjecte[[#This Row],[Import imputable a la subvenció municipal]],DespesesProjecte[[#This Row],[Import de l''aportació / Cofinançament de l''organització]])","v":0},null,null,{"$f":"SUM(G89:G91)","v":0},{"$f":"SUM(H89:H91)","v":0},0]
[null,null,null,{"$f":"SUM(DespesesProjecte[[#This Row],[Import imputable a la subvenció municipal]],DespesesProjecte[[#This Row],[Import de l''aportació / Cofinançament de l''organització]])","v":0},null,null,null,null,0]
[null,null,null,{"$f":"SUM(DespesesProjecte[[#This Row],[Import imputable a la subvenció municipal]],DespesesProjecte[[#This Row],[Import de l''aportació / Cofinançament de l''organització]])","v":0},null,null,null,null,0]
[null,null,null,{"$f":"SUM(DespesesProjecte[[#This Row],[Import imputable a la subvenció municipal]],DespesesProjecte[[#This Row],[Import de l''aportació / Cofinançament de l''organització]])","v":0},null,null,null,null,0]
["I5.  Adquisició de materials i béns consumibles parcialment imputables al projecte",{"$f":"SUM(B93:B95)","v":0},{"$f":"SUM(C93:C95)","v":0},{"$f":"SUM(DespesesProjecte[[#This Row],[Import imputable a la subvenció municipal]],DespesesProjecte[[#This Row],[Import de l''aportació / Cofinançament de l''organització]])","v":0},null,null,{"$f":"SUM(G93:G95)","v":0},{"$f":"SUM(H93:H95)","v":0},0]
[null,null,null,{"$f":"SUM(DespesesProjecte[[#This Row],[Import imputable a la subvenció municipal]],DespesesProjecte[[#This Row],[Import de l''aportació / Cofinançament de l''organització]])","v":0},null,null,null,null,0]
[null,null,null,{"$f":"SUM(DespesesProjecte[[#This Row],[Import imputable a la subvenció municipal]],DespesesProjecte[[#This Row],[Import de l''aportació / Cofinançament de l''organització]])","v":0},null,null,null,null,0]
[null,null,null,{"$f":"SUM(DespesesProjecte[[#This Row],[Import imputable a la subvenció municipal]],DespesesProjecte[[#This Row],[Import de l''aportació / Cofinançament de l''organització]])","v":0},null,null,null,null,0]
["I6.  Manteniment d’edificis i/o instal·lacions",{"$f":"SUM(B97:B99)","v":0},{"$f":"SUM(C97:C99)","v":0},{"$f":"SUM(DespesesProjecte[[#This Row],[Import imputable a la subvenció municipal]],DespesesProjecte[[#This Row],[Import de l''aportació / Cofinançament de l''organització]])","v":0},null,null,{"$f":"SUM(G97:G99)","v":0},{"$f":"SUM(H97:H99)","v":0},0]
[null,null,null,{"$f":"SUM(DespesesProjecte[[#This Row],[Import imputable a la subvenció municipal]],DespesesProjecte[[#This Row],[Import de l''aportació / Cofinançament de l''organització]])","v":0},null,null,null,null,0]
[null,null,null,{"$f":"SUM(DespesesProjecte[[#This Row],[Import imputable a la subvenció municipal]],DespesesProjecte[[#This Row],[Import de l''aportació / Cofinançament de l''organització]])","v":0},null,null,null,null,0]
[null,null,null,{"$f":"SUM(DespesesProjecte[[#This Row],[Import imputable a la subvenció municipal]],DespesesProjecte[[#This Row],[Import de l''aportació / Cofinançament de l''organització]])","v":0},null,null,null,null,0]
["I7.  Comunicacions (telèfon, correus, connexió a internet)",{"$f":"SUM(B101:B103)","v":0},{"$f":"SUM(C101:C103)","v":0},{"$f":"SUM(DespesesProjecte[[#This Row],[Import imputable a la subvenció municipal]],DespesesProjecte[[#This Row],[Import de l''aportació / Cofinançament de l''organització]])","v":0},null,null,{"$f":"SUM(G101:G103)","v":0},{"$f":"SUM(H101:H103)","v":0},0]
[null,null,null,{"$f":"SUM(DespesesProjecte[[#This Row],[Import imputable a la subvenció municipal]],DespesesProjecte[[#This Row],[Import de l''aportació / Cofinançament de l''organització]])","v":0},null,null,null,null,0]
[null,null,null,{"$f":"SUM(DespesesProjecte[[#This Row],[Import imputable a la subvenció municipal]],DespesesProjecte[[#This Row],[Import de l''aportació / Cofinançament de l''organització]])","v":0},null,null,null,null,0]
[null,null,null,{"$f":"SUM(DespesesProjecte[[#This Row],[Import imputable a la subvenció municipal]],DespesesProjecte[[#This Row],[Import de l''aportació / Cofinançament de l''organització]])","v":0},null,null,null,null,0]
["I8.  Despeses financeres",{"$f":"SUM(B105:B107)","v":0},{"$f":"SUM(C105:C107)","v":0},{"$f":"SUM(DespesesProjecte[[#This Row],[Import imputable a la subvenció municipal]],DespesesProjecte[[#This Row],[Import de l''aportació / Cofinançament de l''organització]])","v":0},null,null,{"$f":"SUM(G105:G107)","v":0},{"$f":"SUM(H105:H107)","v":0},0]
[null,null,null,{"$f":"SUM(DespesesProjecte[[#This Row],[Import imputable a la subvenció municipal]],DespesesProjecte[[#This Row],[Import de l''aportació / Cofinançament de l''organització]])","v":0},null,null,null,null,0]
[null,null,null,{"$f":"SUM(DespesesProjecte[[#This Row],[Import imputable a la subvenció municipal]],DespesesProjecte[[#This Row],[Import de l''aportació / Cofinançament de l''organització]])","v":0},null,null,null,null,0]
[null,null,null,{"$f":"SUM(DespesesProjecte[[#This Row],[Import imputable a la subvenció municipal]],DespesesProjecte[[#This Row],[Import de l''aportació / Cofinançament de l''organització]])","v":0},null,null,null,null,0]
["I9.  Subministraments ",{"$f":"SUM(B109:B111)","v":0},{"$f":"SUM(C109:C111)","v":0},{"$f":"SUM(DespesesProjecte[[#This Row],[Import imputable a la subvenció municipal]],DespesesProjecte[[#This Row],[Import de l''aportació / Cofinançament de l''organització]])","v":0},null,null,{"$f":"SUM(G109:G111)","v":0},{"$f":"SUM(H109:H111)","v":0},0]
[null,null,null,{"$f":"SUM(DespesesProjecte[[#This Row],[Import imputable a la subvenció municipal]],DespesesProjecte[[#This Row],[Import de l''aportació / Cofinançament de l''organització]])","v":0},null,null,null,null,0]
[null,null,null,{"$f":"SUM(DespesesProjecte[[#This Row],[Import imputable a la subvenció municipal]],DespesesProjecte[[#This Row],[Import de l''aportació / Cofinançament de l''organització]])","v":0},null,null,null,null,0]
[null,null,null,{"$f":"SUM(DespesesProjecte[[#This Row],[Import imputable a la subvenció municipal]],DespesesProjecte[[#This Row],[Import de l''aportació / Cofinançament de l''organització]])","v":0},null,null,null,null,0]
["I10.  Treball realitzat per altres empreses, parcialment imputables al projecte (neteja, seguretat...)",{"$f":"SUM(B113:B115)","v":0},{"$f":"SUM(C113:C115)","v":0},{"$f":"SUM(DespesesProjecte[[#This Row],[Import imputable a la subvenció municipal]],DespesesProjecte[[#This Row],[Import de l''aportació / Cofinançament de l''organització]])","v":0},null,null,{"$f":"SUM(G113:G115)","v":0},{"$f":"SUM(H113:H115)","v":0},0]
[null,null,null,{"$f":"SUM(DespesesProjecte[[#This Row],[Import imputable a la subvenció municipal]],DespesesProjecte[[#This Row],[Import de l''aportació / Cofinançament de l''organització]])","v":0},null,null,null,null,0]
[null,null,null,{"$f":"SUM(DespesesProjecte[[#This Row],[Import imputable a la subvenció municipal]],DespesesProjecte[[#This Row],[Import de l''aportació / Cofinançament de l''organització]])","v":0},null,null,null,null,0]
[null,null,null,{"$f":"SUM(DespesesProjecte[[#This Row],[Import imputable a la subvenció municipal]],DespesesProjecte[[#This Row],[Import de l''aportació / Cofinançament de l''organització]])","v":0},null,null,null,null,0]
["TOTAL DESPESES INDIRECTES (es podran assignar al projecte subvencionable fent sevir un percentatge d’assignació) - Màxim 10% de l’import imputable a la subvenció municipal",{"$f":"SUM(B76,B80,B84,B88,B92,B96,B100,B104,B108,B112)","v":0},{"$f":"SUM(C76,C80,C84,C88,C92,C96,C100,C104,C108,C112)","v":0},{"$f":"SUM(D76,D80,D84,D88,D92,D96,D100,D104,D108,D112)","v":0},null,null,{"$f":"SUM(G76,G80,G84,G88,G92,G96,G100,G104,G108,G112)","v":0},{"$f":"SUM(H76,H80,H84,H88,H92,H96,H100,H104,H108,H112)","v":0},{"$f":"SUM(I76,I80,I84,I88,I92,I96,I100,I104,I108,I112)","v":0},{"$f":"+IF(G116>H13*0.1,\"ALERTA: Màxim 10% de l'import imputable a la subvenció municipal\", \" \")","v":" "}]
["TOTAL DE DESPESES PREVISTES",{"$f":"SUM(B116,B75)","v":0},{"$f":"SUM(C116,C75)","v":0},{"$f":"SUM(D116,D75)","v":0},null,null,{"$f":"SUM(G116,G75)","v":0},{"$f":"SUM(H116,H75)","v":0},{"$f":"SUM(I116,I75)","v":0}]
[]
[]
[]
[]
["Modalitat Bb. Creació, desenvolupament i enfortiment d'ecosistemes cooperatius i clústers d'ESS"]
["Submodalitat Bb2. Desenvolupament i enfortiment"]
["1.  La quantia de la subvenció atorgada no superarà el 80% de la despesa total del projecte a subvencionar. "]
["2. L'import màxim de subvenció per a aquesta submodalitat de l'àmbit temàtic de Reactivació: Intercooperació (Bb2) és 40.000€.\n"]
["3. Les persones sol·licitants han d'escollir una o altra submodalitat (Bb1 o Bb2) en la seva sol·licitud de subvenció: No és possible presentar-ne a les dues."]
["4.  En el cas que la sol·licitud presentada sobrepassi l’import màxim, es considerarà com a import sol·licitat el màxim de l'establert a la convocatòria."]
["5. En aquesta modalitat s'acceptarà la imputació de despeses de personal propi i directament vinculat al projecte de les organitzacions participants de l'acord de col·laboració."]
["6.  Es limita amb un màxim del 40% l'import de la subvenció per  a despeses de personal propi assignat directament al projecte subvencionat (retribucions i seguretat social- règim general o autònoms-)."]
["7. Les despeses de lloguer d'immobles es limiten a un màxim del 25% si es tracta d'un nou espai físic necessari pel desenvolupament del projecte subvencionable. En el cas de lloguers d'immobles no relacionats directament amb el desenvolupament del projecte, aquestes despeses de lloguer s'imputaran a les despeses indirectes amb el límit establert per aquestes."]
["8. Per a les subvencions atorgades per import igual o superior a 20.000 € és necessari un informe d'auditoria per a la justificació. L'import d'aquest informe es considera despesa subvencionable, amb un límit màxim de 1.500€."]
["9. La submodalitat “Bb2 Desenvolupament i enfortiment” dóna suport als projectes d’intercooperació d’ecosistemes cooperatius i clústers sectorials, intersectorials o temàtics, dels grups cooperatius i els acords d’intercooperació ja existents o en processos de maduració sòlids, que al menys comencin la seva execució al llarg de 2023."]
["10. Els projectes d'aquesta submodalitat hauran de lliurar a la seva finalització un producte comunicatiu, d'acord amb el contingut establert a la convocatòria de la subvenció."]
["11. Són imputables en aquesta modalitat les despeses indirectes, detallades en l’apartat 13.3. de les bases reguladores; amb un màxim del 10% de l'import de la subvenció.\nEl caràcter subvencionable de la despesa d'amortització estarà subjecte a les condicions següents:\n> Que les subvencions no hagin contribuït a la compra dels béns.\n> Que l'amortització es calculi de conformitat amb les normes de comptabilitat generalment acceptades.\n> Que el cost es refereixi al període subvencionable.\n\n"]
["12.  Quan s'hagi de fer despeses de més de 12.000 €, sense IVA, en el cas de prestacions de serveis o lliurament de béns i per aquelles despeses de més de 30.000 €,  sense IVA, en el cas d'execució d'obres, s'hauran d'incorporar tres pressupostos sol·licitats i argumentar el motiu de l'adjudicació en el cas de no ser la proposta més avantatjosa econòmicament."]
["13. No seran elegibles factures d'empreses emeses entre les organitzacions participants de l'acord de col·laboració."]
["14. En cap cas es consideraran despeses subvencionables:\n> Els impostos indirectes quan siguin susceptibles de recuperació o compensació.\n> Les despeses d'inversió, incloses les adquisicions de béns mobles.\n> Les despeses realitzades amb data anterior a l'inici del projecte i data posterior a la finalització del projecte.\n> Altres despeses que s'indiquin a la convocatòria."]
["15. La retribució de les persones contractades en el marc del projecte subvencionat no pot ser inferior al Salari Mínim Interprofessional (SMI), ni a l'estipulada al corresponent conveni o marc normatiu de referència (punt 7 de les bases 2023: requisits dels projectes). "]
["16. Els materials produïts de difusió, estudis, informes o materials didàctics utilitzats, etc. en el cas de tractar-se de despesa elegible de la subvenció, hauran de tenir llicència Creative Commons -Compartir Igual- (share a like)  i no podrà tenir la condició –Sense Obres Derivades- (no derivate Works)."]
["17. Els projectes subvencionats han de fomentar activitats d'interès públic o social, les quals han de ser gratuïtes per a les persones participants o en cap cas el preu ha de suposar un obstacle per a la seva participació, buscant altres formes d'accés per a persones amb dificultats econòmiques. En el cas que hi hagi algun tipus de lucre, haurà de revertir en les pròpies activitats subvencionades."]
["18. L'Ajuntament de Barcelona i les seves entitats municipals en cap cas subvencionaran el mateix projecte, executat durant el mateix període, per cap altre procediment de concessió que no sigui el regulat per les bases reguladores."]
["19. El/la beneficiari/ària no podrà alterar en cap cas el destí de les subvencions concedides."]
["20. L'organització designada com a representant de l'agrupació serà plenament responsable del projecte davant l'Ajuntament respecte al compliment de les obligacions establertes en les bases reguladores, sense perjudici de la responsabilitat de les altres organitzacions sòcies de l'agrupació, tot sent-li d'aplicació els requisits previstos al punt 6.1 de les bases reguladores. "]
["21. En cap cas podran formar part de l'agrupació les organitzacions que hagin rebut altres subvencions per a l'execució del mateix projecte d'altres administracions públiques."]

{"sheet":"Resum Pressupost","index":2,"n_rows":35,"n_cols":11,"rows_kept":35,"cut":false,"hidden":false,"merged":[[33,6,33,11],[6,9,7,9],[26,6,26,7],[32,7,32,9],[21,2,22,2],[21,3,22,3],[21,4,22,4],[1,2,1,7],[5,0,5,1],[3,0,3,8],[6,2,7,2],[6,0,7,1],[6,8,7,8],[6,6,7,7],[6,4,7,4],[6,3,7,3]]}
[]
[null,null,"Resum pressupost Modalitat Bb2"]
[]
["Subvencions de l'Ajuntament de Barcelona per a la reactivació i l'enfortiment de l'Economia Social i Solidària i el desenvolupament de projectes d'intercooperació que desenvolupen l'Estratègia #ESSBCN2030",null,null,null,null,null,null,null,null,"MODALITAT Bb2"]
[]
["DESPESES PREVISTES",null,null,null,null,null,"INGRESSOS PREVISTOS"]
["Despeses directes \n(aquelles que s'identifiquen directament amb el projecte)",null,"Previsió inicial cost total","Previsió reformulada cost total","Import imputat a la subvenció atorgada",null,"Ingressos previstos",null,"Previsió inicial ingrés total","Previsió reformulada ingrés total"]
[]
["Bb2","D1. Retribucions i seguretat social (règim general o règim d’autònoms) del personal propi  vinculat/da al projecte (màxim 40% subvenció)",{"$f":"+'Reformulació Pressupost Bb2'!D24","v":0},{"$f":"+'Reformulació Pressupost Bb2'!I24","v":0},{"$f":"+'Reformulació Pressupost Bb2'!G24","v":0},{"$f":"+IF(D9<0,\"No s'admeten valors negatius\",\"\")","v":""},"A.","Subvenció municipal (import sol·licitat a la instància/atorgat)"]
[null,"D2.  Treballs realitzats per professionals i empreses externes directament vinculades al projecte subvencionat",{"$f":"+'Reformulació Pressupost Bb2'!D30","v":0},{"$f":"+'Reformulació Pressupost Bb2'!I30","v":0},{"$f":"+'Reformulació Pressupost Bb2'!G30","v":0},null,"B.","Subvencions d'altres administracions",null,null,{"$f":"+IF(J10<0,\"No s'admeten valors negatius\",\"\")","v":""}]
[null,"D3.  Lloguer de béns mobles/ immobles directament vinculats al projecte subvencionable (màx. 25% subvenció en cas d'immobles per a un nou espai)",{"$f":"+'Reformulació Pressupost Bb2'!D34","v":0},{"$f":"+'Reformulació Pressupost Bb2'!I34","v":0},{"$f":"+'Reformulació Pressupost Bb2'!G34","v":0},{"$f":"+IF(D10<0,\"No s'admeten valors negatius\",\"\")","v":""},"C.","Subvencions d'ens privats",null,null,""]
[null,"D4.  Adquisició de materials i béns consumibles íntegrament imputables al projecte ",{"$f":"+'Reformulació Pressupost Bb2'!D38","v":0},{"$f":"+'Reformulació Pressupost Bb2'!I38","v":0},{"$f":"+'Reformulació Pressupost Bb2'!G38","v":0},{"$f":"+IF(D11<0,\"No s'admeten valors negatius\",\"\")","v":""},"D.","Recursos propis de l'organització aplicats al projecte"]
[null,"D5.  Transport – missatgeria imputables al projecte ",{"$f":"+'Reformulació Pressupost Bb2'!D42","v":0},{"$f":"+'Reformulació Pressupost Bb2'!I42","v":0},{"$f":"+'Reformulació Pressupost Bb2'!G42","v":0},null,"E.","Taquillatge"]
[null,"D6. Publicitat i propaganda de les activitats directament vinculades al projecte ",{"$f":"+'Reformulació Pressupost Bb2'!D46","v":0},{"$f":"+'Reformulació Pressupost Bb2'!I46","v":0},{"$f":"+'Reformulació Pressupost Bb2'!G46","v":0},null,"F.","Quotes d'inscripció"]
[null,"D7.  Allotjament i dietes, del personal contractat i voluntari, vinculats al projecte",{"$f":"+'Reformulació Pressupost Bb2'!D50","v":0},{"$f":"+'Reformulació Pressupost Bb2'!I50","v":0},{"$f":"+'Reformulació Pressupost Bb2'!G50","v":0},null,"G.","Venda de Productes"]
[null,"D8.  Ajuts al transport per als/les participants dels projectes en cas que sigui necessari de manera justificada",{"$f":"+'Reformulació Pressupost Bb2'!D54","v":0},{"$f":"+'Reformulació Pressupost Bb2'!I54","v":0},{"$f":"+'Reformulació Pressupost Bb2'!G54","v":0},null,"H","Publicitat i/o Esponsorització"]
[null," D9. Viatges i desplaçaments imputables a les activitats del projecte",{"$f":"+'Reformulació Pressupost Bb2'!D58","v":0},{"$f":"+'Reformulació Pressupost Bb2'!I58","v":0},{"$f":"+'Reformulació Pressupost Bb2'!G58","v":0},null,"I.","Altres ingressos"]
[null,"D10. Tributs, quan siguin abonats directament per la persona jurídica o física beneficiària",{"$f":"+'Reformulació Pressupost Bb2'!D62","v":0},{"$f":"+'Reformulació Pressupost Bb2'!I62","v":0},{"$f":"+'Reformulació Pressupost Bb2'!G62","v":0},null,null,"Total Ingressos",{"$f":"SUM(I9:I17)","v":0},{"$f":"SUM(J9:J17)","v":0}]
[null,"D11.  Despeses de l’informe d’auditoria (màx. 1.500€ subvenció)",{"$f":"+'Reformulació Pressupost Bb2'!D66","v":0},{"$f":"+'Reformulació Pressupost Bb2'!I66","v":0},{"$f":"+'Reformulació Pressupost Bb2'!G66","v":0}]
[null,"D12.  Altres despeses que de manera justificada puguin imputar-se directament al projecte subvencionable",{"$f":"+'Reformulació Pressupost Bb2'!D70","v":0},{"$f":"+'Reformulació Pressupost Bb2'!I70","v":0},{"$f":"+'Reformulació Pressupost Bb2'!G70","v":0}]
[null,"Total Despeses Directes   ",{"$f":"SUM(C9:C20)","v":0},{"$f":"SUM(D9:D20)","v":0},{"$f":"SUM(E9:E20)","v":0}]
[null,"Despeses indirectes (es podran assignar al projecte fent sevir un percentatge d’assignació) ","Previsió inicial cost total","Previsió reformulada cost total","Import imputat a la subvenció atorgada"]
[]
[null,"I.1 Personal de suport al projecte subvencionat (Nòmines i seguretat social)",{"$f":"+'Reformulació Pressupost Bb2'!D76","v":0},{"$f":"+'Reformulació Pressupost Bb2'!I76","v":0},{"$f":"+'Reformulació Pressupost Bb2'!G76","v":0}]
[null,"I.2  Assegurances",{"$f":"+'Reformulació Pressupost Bb2'!D80","v":0},{"$f":"+'Reformulació Pressupost Bb2'!I80","v":0},{"$f":"+'Reformulació Pressupost Bb2'!G80","v":0}]
[null,"I.3  Amortització",{"$f":"+'Reformulació Pressupost Bb2'!D84","v":0},{"$f":"+'Reformulació Pressupost Bb2'!I84","v":0},{"$f":"+'Reformulació Pressupost Bb2'!G84","v":0}]
[null,"I.4  Lloguer de béns immobles",{"$f":"+'Reformulació Pressupost Bb2'!D88","v":0},{"$f":"+'Reformulació Pressupost Bb2'!I88","v":0},{"$f":"+'Reformulació Pressupost Bb2'!G88","v":0},{"$f":"+IF(D26<0,\"No s'admeten valors negatius\",\"\")","v":""},"Ingressos menys despeses ",null,{"$f":"+I18-C35","v":0},{"$f":"+J18-D35","v":0}]
[null,"I.5  Adquisició de materials i béns consumibles parcialment imputables al projecte",{"$f":"+'Reformulació Pressupost Bb2'!D92","v":0},{"$f":"+'Reformulació Pressupost Bb2'!I92","v":0},{"$f":"+'Reformulació Pressupost Bb2'!G92","v":0}]
[null,"I.6  Manteniment d’edificis i/o instal·lacions",{"$f":"+'Reformulació Pressupost Bb2'!D96","v":0},{"$f":"+'Reformulació Pressupost Bb2'!I96","v":0},{"$f":"+'Reformulació Pressupost Bb2'!G96","v":0}]
[null,"I.7  Comunicacions (telèfon, correus, connexió a internet)",{"$f":"+'Reformulació Pressupost Bb2'!D100","v":0},{"$f":"+'Reformulació Pressupost Bb2'!I100","v":0},{"$f":"+'Reformulació Pressupost Bb2'!G100","v":0},null,null,null,"% subvencionat inicialment",{"$f":"I9/C35","v":{"$error":"#DIV/0!"}}]
[null,"I.8  Despeses financeres",{"$f":"+'Reformulació Pressupost Bb2'!D104","v":0},{"$f":"+'Reformulació Pressupost Bb2'!I104","v":0},{"$f":"+'Reformulació Pressupost Bb2'!G104","v":0}]
[null,"I.9  Subministraments ",{"$f":"+'Reformulació Pressupost Bb2'!D108","v":0},{"$f":"+'Reformulació Pressupost Bb2'!I108","v":0},{"$f":"+'Reformulació Pressupost Bb2'!G108","v":0},null,null,null,"% subvencionat després de reformular",{"$f":"+J9/D35","v":{"$error":"#DIV/0!"}},"*"]
[null,"I.10  Treball realitzat per altres empreses, parcialment imputables al projecte subvencionable (neteja, seguretat...)",{"$f":"+'Reformulació Pressupost Bb2'!D112","v":0},{"$f":"+'Reformulació Pressupost Bb2'!I112","v":0},{"$f":"+'Reformulació Pressupost Bb2'!G112","v":0},null,null,"*Aquest percentatge ha de ser igual o menor al percentatge subvencionat inicialment."]
[null,"Total Despeses Indirectes   (Màx. 10% subv)",{"$f":"SUM(C24:C33)","v":0},{"$f":"SUM(D24:D33)","v":0},{"$f":"SUM(E24:E33)","v":0}]
[null,"Total Despeses ",{"$f":"+C21+C34","v":0},{"$f":"+D21+D34","v":0},{"$f":"+E21+E34","v":0}]